[Event "Titled Tuesday Blitz May 25 2021"]
[White "Orlov, Oleg"]
[Black "Krivonosov, Oleg"]
[WhiteFideId "4166612"]
[BlackFideId "11600349"]
[WhiteElo "2573"]
[BlackElo "2731"]
[Result "1/2-1/2"]
[Round "08"]
[TimeControl "180+1"]
[Date "2021.05.25"]
[WhiteClock "0:01:06"]
[BlackClock "0:00:56"]

1. Nf3 {[%clk 0:03:00]}  d5 {[%clk 0:02:59]} 2. c4 {[%clk 0:02:58]}  e6 {[%clk 0:02:58]} 3. g3 {[%clk 0:02:57]}  Nf6 {[%clk 0:02:58]} 4. Bg2 {[%clk 0:02:57]}  Be7 {[%clk 0:02:59]} 5. d4 {[%clk 0:02:57]}  O-O {[%clk 0:02:58]} 6. O-O {[%clk 0:02:58]}  Nbd7 {[%clk 0:02:58]} 7. Qc2 {[%clk 0:02:55]}  c6 {[%clk 0:02:57]} 8. Rd1 {[%clk 0:02:54]}  b6 {[%clk 0:02:56]} 9. Nbd2 {[%clk 0:02:50]}  Bb7 {[%clk 0:02:50]} 10. e4 {[%clk 0:02:50]}  dxc4 {[%clk 0:02:50]} 11. Nxc4 {[%clk 0:02:49]}  c5 {[%clk 0:02:50]} 12. Nfe5 {[%clk 0:02:20]}  cxd4 {[%clk 0:02:46]} 13. Rxd4 {[%clk 0:02:21]}  Qc7 {[%clk 0:02:44]} 14. Bf4 {[%clk 0:02:20]}  Nxe5 {[%clk 0:02:43]} 15. Bxe5 {[%clk 0:02:20]}  Qc6 {[%clk 0:02:40]} 16. a4 {[%clk 0:02:05]}  Rad8 {[%clk 0:02:26]} 17. Rad1 {[%clk 0:02:02]}  Rxd4 {[%clk 0:02:25]} 18. Rxd4 {[%clk 0:02:03]}  Bc5 {[%clk 0:02:15]} 19. Bxf6 {[%clk 0:01:52]}  gxf6 {[%clk 0:02:10]} 20. Rd2 {[%clk 0:01:52]}  Bb4 {[%clk 0:01:49]} 21. Re2 {[%clk 0:01:48]}  Rd8 {[%clk 0:01:43]} 22. h3 {[%clk 0:01:39]}  Qc5 {[%clk 0:01:35]} 23. Kh2 {[%clk 0:01:37]}  Ba6 {[%clk 0:01:29]} 24. b3 {[%clk 0:01:36]}  Bxc4 {[%clk 0:01:27]} 25. bxc4 {[%clk 0:01:33]}  Qd4 {[%clk 0:01:23]} 26. e5 {[%clk 0:01:22]}  f5 {[%clk 0:01:19]} 27. Qc1 {[%clk 0:01:22]}  Bd2 {[%clk 0:01:12]} 28. Qa3 {[%clk 0:01:22]}  Bh6 {[%clk 0:01:06]} 29. Qe7 {[%clk 0:01:13]}  Qd7 {[%clk 0:01:04]} 30. Qf6 {[%clk 0:01:10]}  Bg7 {[%clk 0:01:03]} 31. Qg5 {[%clk 0:01:11]}  h6 {[%clk 0:01:02]} 32. Qh4 {[%clk 0:01:08]}  Qd4 {[%clk 0:00:59]} 33. Qe7 {[%clk 0:01:07]}  Qd7 {[%clk 0:00:57]} 34. Qh4 {[%clk 0:01:06]}  Qd4 {[%clk 0:00:56]} 35. Qe7 {[%clk 0:01:06]}  Qd7 {[%clk 0:00:56]} 36. Qh4 {[%clk 0:01:06]} 1/2-1/2


[Site "https://www.chess.com"]

[Event "Titled Tuesday Blitz May 25 2021"]
[White "Papasimakopoulos, Alexandros"]
[Black "Kazakouski, Valery"]
[WhiteFideId "4244125"]
[BlackFideId "13507443"]
[WhiteElo "2637"]
[BlackElo "2765"]
[Result "1/2-1/2"]
[Round "08"]
[TimeControl "180+1"]
[Date "2021.05.25"]
[WhiteClock "0:00:46"]
[BlackClock "0:00:33"]

1. d4 {[%clk 0:03:00]}  Nf6 {[%clk 0:03:00]} 2. c4 {[%clk 0:03:01]}  e6 {[%clk 0:03:00]} 3. Nc3 {[%clk 0:03:01]}  Bb4 {[%clk 0:03:00]} 4. Qc2 {[%clk 0:03:01]}  Nc6 {[%clk 0:03:00]} 5. Nf3 {[%clk 0:03:01]}  d6 {[%clk 0:03:01]} 6. Bd2 {[%clk 0:03:01]}  O-O {[%clk 0:03:01]} 7. a3 {[%clk 0:03:00]}  Bxc3 {[%clk 0:03:02]} 8. Bxc3 {[%clk 0:03:01]}  Qe7 {[%clk 0:03:03]} 9. g3 {[%clk 0:03:00]}  e5 {[%clk 0:03:03]} 10. d5 {[%clk 0:03:00]}  Nb8 {[%clk 0:03:03]} 11. Bg2 {[%clk 0:03:01]}  a5 {[%clk 0:03:04]} 12. b3 {[%clk 0:02:59]}  Nbd7 {[%clk 0:02:42]} 13. O-O {[%clk 0:02:58]}  Nc5 {[%clk 0:02:43]} 14. b4 {[%clk 0:02:58]}  Nce4 {[%clk 0:02:43]} 15. Bb2 {[%clk 0:02:54]}  axb4 {[%clk 0:02:42]} 16. axb4 {[%clk 0:02:54]}  Rxa1 {[%clk 0:02:24]} 17. Rxa1 {[%clk 0:02:55]}  h6 {[%clk 0:02:18]} 18. Nd2 {[%clk 0:02:42]}  Nxd2 {[%clk 0:02:08]} 19. Qxd2 {[%clk 0:02:43]}  Nd7 {[%clk 0:02:00]} 20. e4 {[%clk 0:02:26]}  f5 {[%clk 0:02:00]} 21. exf5 {[%clk 0:02:25]}  Rxf5 {[%clk 0:02:00]} 22. Bh3 {[%clk 0:02:26]}  Rf8 {[%clk 0:02:00]} 23. Be6+ {[%clk 0:01:59]}  Kh8 {[%clk 0:01:59]} 24. f4 {[%clk 0:01:54]}  exf4 {[%clk 0:01:56]} 25. Rf1 {[%clk 0:01:53]}  Ne5 {[%clk 0:01:28]} 26. Rxf4 {[%clk 0:01:46]}  Rxf4 {[%clk 0:01:19]} 27. Qxf4 {[%clk 0:01:46]}  Bxe6 {[%clk 0:01:16]} 28. Bxe5 {[%clk 0:01:41]}  Bd7 {[%clk 0:00:58]} 29. Bc3 {[%clk 0:01:37]}  Kg8 {[%clk 0:00:54]} 30. Kf2 {[%clk 0:01:37]}  Be8 {[%clk 0:00:52]} 31. g4 {[%clk 0:01:30]}  Bf7 {[%clk 0:00:47]} 32. Qe3 {[%clk 0:01:16]}  Qd7 {[%clk 0:00:42]} 33. Qd4 {[%clk 0:01:15]}  Bg6 {[%clk 0:00:39]} 34. h4 {[%clk 0:01:14]}  h5 {[%clk 0:00:38]} 35. gxh5 {[%clk 0:01:09]}  Bxh5 {[%clk 0:00:39]} 36. Qe4 {[%clk 0:01:04]}  b6 {[%clk 0:00:37]} 37. Qe6+ {[%clk 0:00:59]}  Qxe6 {[%clk 0:00:31]} 38. dxe6 {[%clk 0:00:59]}  Kf8 {[%clk 0:00:32]} 39. e7+ {[%clk 0:00:53]}  Kxe7 {[%clk 0:00:32]} 40. Bxg7 {[%clk 0:00:53]}  Bf7 {[%clk 0:00:33]} 41. c5 {[%clk 0:00:50]}  dxc5 {[%clk 0:00:33]} 42. bxc5 {[%clk 0:00:51]}  b5 {[%clk 0:00:33]} 43. Ke3 {[%clk 0:00:49]}  Ke6 {[%clk 0:00:32]} 44. Kd4 {[%clk 0:00:46]}  c6 {[%clk 0:00:33]} 1/2-1/2


[Site "https://www.chess.com"]

[Event "Titled Tuesday Blitz May 25 2021"]
[White "Pastar, Slaven"]
[Black "Samsonkin, Artiom"]
[WhiteFideId "14402718"]
[BlackFideId "13503111"]
[WhiteElo "2227"]
[BlackElo "2513"]
[Result "0-1"]
[Round "08"]
[TimeControl "180+1"]
[Date "2021.05.25"]
[WhiteClock "0:02:12"]
[BlackClock "0:02:00"]

1. b4 {[%clk 0:03:00]}  a5 {[%clk 0:02:58]} 2. b5 {[%clk 0:02:59]}  b6 {[%clk 0:02:57]} 3. Bb2 {[%clk 0:02:58]}  Bb7 {[%clk 0:02:57]} 4. Nf3 {[%clk 0:02:57]}  Nf6 {[%clk 0:02:57]} 5. e3 {[%clk 0:02:57]}  g6 {[%clk 0:02:55]} 6. Be2 {[%clk 0:02:48]}  Bg7 {[%clk 0:02:53]} 7. O-O {[%clk 0:02:48]}  O-O {[%clk 0:02:53]} 8. c4 {[%clk 0:02:49]}  d6 {[%clk 0:02:50]} 9. Nc3 {[%clk 0:02:49]}  Nbd7 {[%clk 0:02:50]} 10. d4 {[%clk 0:02:46]}  e6 {[%clk 0:02:49]} 11. Rc1 {[%clk 0:02:45]}  Qe7 {[%clk 0:02:49]} 12. Na4 {[%clk 0:02:45]}  Ne4 {[%clk 0:02:46]} 13. Nd2 {[%clk 0:02:42]}  f5 {[%clk 0:02:37]} 14. Nxe4 {[%clk 0:02:36]}  Bxe4 {[%clk 0:02:30]} 15. Qd2 {[%clk 0:02:29]}  Rad8 {[%clk 0:02:16]} 16. Ba3 {[%clk 0:02:26]}  Qg5 {[%clk 0:02:08]} 17. f3 {[%clk 0:02:23]}  Ba8 {[%clk 0:02:06]} 18. f4 {[%clk 0:02:12]}  Qxg2# {[%clk 0:02:00]} 0-1


[Site "https://www.chess.com"]

[Event "Titled Tuesday Blitz May 25 2021"]
[White "Perez Gormaz, Matias"]
[Black "Senft, Sean"]
[WhiteFideId "3406342"]
[BlackFideId "2044960"]
[WhiteElo "2414"]
[BlackElo "1881"]
[Result "1-0"]
[Round "08"]
[TimeControl "180+1"]
[Date "2021.05.25"]
[WhiteClock "0:00:50"]
[BlackClock "0:00:38"]

1. e4 {[%clk 0:03:00]}  c5 {[%clk 0:02:59]} 2. Nf3 {[%clk 0:03:00]}  d6 {[%clk 0:03:00]} 3. g3 {[%clk 0:02:58]}  Nf6 {[%clk 0:03:01]} 4. c3 {[%clk 0:02:58]}  g6 {[%clk 0:03:00]} 5. Bg2 {[%clk 0:02:57]}  Bg7 {[%clk 0:03:01]} 6. O-O {[%clk 0:02:58]}  O-O {[%clk 0:03:01]} 7. Re1 {[%clk 0:02:58]}  Nc6 {[%clk 0:03:01]} 8. d4 {[%clk 0:02:59]}  cxd4 {[%clk 0:03:01]} 9. cxd4 {[%clk 0:03:00]}  Bg4 {[%clk 0:03:01]} 10. h3 {[%clk 0:02:59]}  Bxf3 {[%clk 0:03:01]} 11. Bxf3 {[%clk 0:03:00]}  Nd7 {[%clk 0:03:01]} 12. Be3 {[%clk 0:02:59]}  Rc8 {[%clk 0:03:01]} 13. Nc3 {[%clk 0:02:59]}  a6 {[%clk 0:03:01]} 14. Qd2 {[%clk 0:02:45]}  b5 {[%clk 0:03:01]} 15. Rac1 {[%clk 0:02:45]}  Nb6 {[%clk 0:03:02]} 16. b3 {[%clk 0:02:44]}  Nd7 {[%clk 0:02:54]} 17. Bg2 {[%clk 0:02:37]}  Qa5 {[%clk 0:02:39]} 18. Red1 {[%clk 0:02:33]}  Rfd8 {[%clk 0:02:35]} 19. h4 {[%clk 0:02:16]}  h5 {[%clk 0:02:33]} 20. Qe1 {[%clk 0:02:03]}  e5 {[%clk 0:02:26]} 21. dxe5 {[%clk 0:01:57]}  Ndxe5 {[%clk 0:02:27]} 22. Qe2 {[%clk 0:01:17]}  Ng4 {[%clk 0:02:23]} 23. Nd5 {[%clk 0:01:12]}  Nxe3 {[%clk 0:02:11]} 24. Qxe3 {[%clk 0:01:11]}  Kh7 {[%clk 0:01:52]} 25. Bh3 {[%clk 0:01:08]}  f5 {[%clk 0:01:25]} 26. exf5 {[%clk 0:01:06]}  Re8 {[%clk 0:01:08]} 27. fxg6+ {[%clk 0:01:04]}  Kh8 {[%clk 0:01:08]} 28. Qf3 {[%clk 0:01:02]}  Nd4 {[%clk 0:00:47]} 29. Qxh5+ {[%clk 0:01:02]}  Kg8 {[%clk 0:00:48]} 30. Rxc8 {[%clk 0:00:54]}  Rxc8 {[%clk 0:00:44]} 31. Bxc8 {[%clk 0:00:53]}  Qd8 {[%clk 0:00:40]} 32. Rxd4 {[%clk 0:00:50]}  Bxd4 {[%clk 0:00:38]} 33. Qh7+ {[%clk 0:00:50]} 1-0


[Site "https://www.chess.com"]

[Event "Titled Tuesday Blitz May 25 2021"]
[White "Perez, Maximiliano"]
[Black "Maksimovic, Bojan"]
[WhiteFideId "117234"]
[BlackFideId "14408120"]
[WhiteElo "2368"]
[BlackElo "2437"]
[Result "1-0"]
[Round "08"]
[TimeControl "180+1"]
[Date "2021.05.25"]
[WhiteClock "0:00:11"]
[BlackClock "0:00:01"]

1. e4 {[%clk 0:03:00]}  c6 {[%clk 0:03:00]} 2. d4 {[%clk 0:03:00]}  d5 {[%clk 0:03:01]} 3. e5 {[%clk 0:03:01]}  Bf5 {[%clk 0:03:01]} 4. h4 {[%clk 0:03:01]}  h5 {[%clk 0:03:00]} 5. c4 {[%clk 0:03:02]}  e6 {[%clk 0:03:00]} 6. Nc3 {[%clk 0:03:02]}  dxc4 {[%clk 0:02:58]} 7. Bxc4 {[%clk 0:02:59]}  Nd7 {[%clk 0:02:58]} 8. Nge2 {[%clk 0:02:59]}  Ne7 {[%clk 0:02:56]} 9. Bg5 {[%clk 0:02:57]}  Nb6 {[%clk 0:02:52]} 10. Bb3 {[%clk 0:02:57]}  Qd7 {[%clk 0:02:49]} 11. Ng3 {[%clk 0:02:47]}  Bg6 {[%clk 0:02:49]} 12. a4 {[%clk 0:02:28]}  a5 {[%clk 0:02:49]} 13. Nge4 {[%clk 0:02:20]}  Ned5 {[%clk 0:02:46]} 14. O-O {[%clk 0:02:20]}  Nxc3 {[%clk 0:02:26]} 15. Nxc3 {[%clk 0:02:16]}  Bb4 {[%clk 0:02:26]} 16. Na2 {[%clk 0:02:06]}  Be7 {[%clk 0:02:25]} 17. Bxe7 {[%clk 0:02:04]}  Qxe7 {[%clk 0:02:24]} 18. g3 {[%clk 0:02:02]}  O-O {[%clk 0:02:20]} 19. Qc1 {[%clk 0:01:50]}  Rfd8 {[%clk 0:02:10]} 20. Rd1 {[%clk 0:01:49]}  Rd7 {[%clk 0:01:58]} 21. Qc5 {[%clk 0:01:26]}  Qxc5 {[%clk 0:01:57]} 22. dxc5 {[%clk 0:01:27]}  Nd5 {[%clk 0:01:58]} 23. Rd2 {[%clk 0:01:18]}  Rad8 {[%clk 0:01:57]} 24. Rad1 {[%clk 0:01:18]}  Bf5 {[%clk 0:01:58]} 25. f3 {[%clk 0:01:15]}  Kf8 {[%clk 0:01:54]} 26. Nc1 {[%clk 0:01:06]}  Ke7 {[%clk 0:01:47]} 27. Bxd5 {[%clk 0:01:06]}  Rxd5 {[%clk 0:01:41]} 28. Rxd5 {[%clk 0:01:05]}  cxd5 {[%clk 0:01:41]} 29. Rd2 {[%clk 0:01:01]}  f6 {[%clk 0:01:02]} 30. f4 {[%clk 0:00:34]}  fxe5 {[%clk 0:01:02]} 31. fxe5 {[%clk 0:00:35]}  Bg6 {[%clk 0:00:52]} 32. Nb3 {[%clk 0:00:33]}  Ra8 {[%clk 0:00:52]} 33. Kf2 {[%clk 0:00:33]}  Be8 {[%clk 0:00:51]} 34. Rd4 {[%clk 0:00:29]}  Bg6 {[%clk 0:00:43]} 35. Ke3 {[%clk 0:00:28]}  Bc2 {[%clk 0:00:42]} 36. Na1 {[%clk 0:00:26]}  Be4 {[%clk 0:00:38]} 37. Nb3 {[%clk 0:00:20]}  Bc2 {[%clk 0:00:18]} 38. Na1 {[%clk 0:00:20]}  Be4 {[%clk 0:00:17]} 39. Nb3 {[%clk 0:00:20]}  Kd7 {[%clk 0:00:14]} 40. Nd2 {[%clk 0:00:19]}  Bc2 {[%clk 0:00:11]} 41. Nf3 {[%clk 0:00:15]}  Kc6 {[%clk 0:00:04]} 42. Ng5 {[%clk 0:00:15]}  Bf5 {[%clk 0:00:04]} 43. b4 {[%clk 0:00:13]}  axb4 {[%clk 0:00:04]} 44. Rxb4 {[%clk 0:00:14]}  Kxc5 {[%clk 0:00:04]} 45. Rxb7 {[%clk 0:00:15]}  Rxa4 {[%clk 0:00:03]} 46. Rxg7 {[%clk 0:00:14]}  Ra3+ {[%clk 0:00:04]} 47. Kf2 {[%clk 0:00:14]}  d4 {[%clk 0:00:04]} 48. Rd7 {[%clk 0:00:12]}  Ra2+ {[%clk 0:00:02]} 49. Kf3 {[%clk 0:00:11]}  Bg4+ {[%clk 0:00:02]} 50. Ke4 {[%clk 0:00:11]}  Bf5+ {[%clk 0:00:01]} 51. Kf3 {[%clk 0:00:11]}  Bg4+ {[%clk 0:00:01]} 52. Ke4 {[%clk 0:00:11]} 1-0


[Site "https://www.chess.com"]

[Event "Titled Tuesday Blitz May 25 2021"]
[White "Polok, Kacper"]
[Black "Hebden, Mark L"]
[WhiteFideId "1137158"]
[BlackFideId "400084"]
[WhiteElo "2196"]
[BlackElo "2457"]
[Result "0-1"]
[Round "08"]
[TimeControl "180+1"]
[Date "2021.05.25"]
[WhiteClock "0:00:40"]
[BlackClock "0:01:12"]

1. e4 {[%clk 0:03:00]}  e5 {[%clk 0:02:59]} 2. Nf3 {[%clk 0:02:59]}  Nc6 {[%clk 0:02:59]} 3. Bb5 {[%clk 0:03:00]}  a6 {[%clk 0:03:00]} 4. Ba4 {[%clk 0:03:00]}  Nf6 {[%clk 0:03:00]} 5. Qe2 {[%clk 0:03:00]}  Be7 {[%clk 0:02:59]} 6. O-O {[%clk 0:03:00]}  b5 {[%clk 0:02:58]} 7. Bb3 {[%clk 0:03:00]}  O-O {[%clk 0:02:59]} 8. c3 {[%clk 0:02:59]}  d5 {[%clk 0:02:58]} 9. d3 {[%clk 0:02:56]}  Re8 {[%clk 0:02:57]} 10. Rd1 {[%clk 0:02:54]}  h6 {[%clk 0:02:55]} 11. Nbd2 {[%clk 0:02:54]}  Bf8 {[%clk 0:02:54]} 12. Nf1 {[%clk 0:02:53]}  Be6 {[%clk 0:02:54]} 13. h3 {[%clk 0:02:36]}  a5 {[%clk 0:02:46]} 14. g4 {[%clk 0:02:33]}  a4 {[%clk 0:02:45]} 15. Bc2 {[%clk 0:02:33]}  Qd7 {[%clk 0:02:37]} 16. Ng3 {[%clk 0:02:32]}  g6 {[%clk 0:02:30]} 17. Kh2 {[%clk 0:02:24]}  Rad8 {[%clk 0:02:16]} 18. Nf5 {[%clk 0:02:12]}  Kh7 {[%clk 0:02:08]} 19. Rg1 {[%clk 0:02:09]}  Ng8 {[%clk 0:01:58]} 20. h4 {[%clk 0:01:41]}  Bc5 {[%clk 0:01:41]} 21. h5 {[%clk 0:01:38]}  dxe4 {[%clk 0:01:39]} 22. dxe4 {[%clk 0:01:35]}  Bc4 {[%clk 0:01:37]} 23. Qe1 {[%clk 0:01:25]}  gxf5 {[%clk 0:01:36]} 24. exf5 {[%clk 0:01:14]}  e4 {[%clk 0:01:34]} 25. f6 {[%clk 0:01:06]}  Bd3 {[%clk 0:01:31]} 26. Bxd3 {[%clk 0:00:46]}  exd3 {[%clk 0:01:29]} 27. Qd2 {[%clk 0:00:44]}  Re2 {[%clk 0:01:22]} 28. Ng5+ {[%clk 0:00:40]}  Kh8 {[%clk 0:01:12]} 0-1


[Site "https://www.chess.com"]

[Event "Titled Tuesday Blitz May 25 2021"]
[White "Prydun, Andriy"]
[Black "Manukyan, Artyom"]
[WhiteFideId "14145898"]
[BlackFideId "13305786"]
[WhiteElo "2033"]
[BlackElo "2034"]
[Result "0-1"]
[Round "08"]
[TimeControl "180+1"]
[Date "2021.05.25"]
[WhiteClock "0:00:02"]
[BlackClock "0:00:18"]

1. d4 {[%clk 0:03:00]}  d5 {[%clk 0:02:59]} 2. Nc3 {[%clk 0:03:01]}  Nf6 {[%clk 0:02:59]} 3. Bf4 {[%clk 0:03:01]}  c5 {[%clk 0:02:55]} 4. e3 {[%clk 0:03:01]}  cxd4 {[%clk 0:02:55]} 5. exd4 {[%clk 0:03:01]}  a6 {[%clk 0:02:56]} 6. a3 {[%clk 0:03:00]}  Bf5 {[%clk 0:02:55]} 7. Bd3 {[%clk 0:03:00]}  Bxd3 {[%clk 0:02:56]} 8. Qxd3 {[%clk 0:03:01]}  Nc6 {[%clk 0:02:56]} 9. Nce2 {[%clk 0:03:00]}  e6 {[%clk 0:02:56]} 10. Nf3 {[%clk 0:03:00]}  Bd6 {[%clk 0:02:57]} 11. Bxd6 {[%clk 0:03:00]}  Qxd6 {[%clk 0:02:57]} 12. Ng3 {[%clk 0:03:00]}  O-O {[%clk 0:02:57]} 13. O-O {[%clk 0:03:00]}  b5 {[%clk 0:02:56]} 14. c3 {[%clk 0:02:58]}  Rab8 {[%clk 0:02:37]} 15. Rae1 {[%clk 0:02:57]}  Qc7 {[%clk 0:02:36]} 16. Ne5 {[%clk 0:02:57]}  a5 {[%clk 0:02:36]} 17. b4 {[%clk 0:02:43]}  Rfc8 {[%clk 0:02:32]} 18. f4 {[%clk 0:02:38]}  Ne7 {[%clk 0:02:32]} 19. Re3 {[%clk 0:02:36]}  axb4 {[%clk 0:02:29]} 20. axb4 {[%clk 0:02:37]}  g6 {[%clk 0:02:17]} 21. h3 {[%clk 0:02:26]}  Ne8 {[%clk 0:02:13]} 22. Ng4 {[%clk 0:02:20]}  Nd6 {[%clk 0:02:07]} 23. Rfe1 {[%clk 0:02:01]}  Ndf5 {[%clk 0:02:01]} 24. Rf3 {[%clk 0:01:47]}  Kg7 {[%clk 0:01:59]} 25. Qd2 {[%clk 0:01:40]}  Ra8 {[%clk 0:01:51]} 26. Ne5 {[%clk 0:01:33]}  Ra3 {[%clk 0:01:49]} 27. Rc1 {[%clk 0:01:20]}  Nxg3 {[%clk 0:01:48]} 28. Rxg3 {[%clk 0:01:20]}  Nf5 {[%clk 0:01:49]} 29. Rf3 {[%clk 0:01:19]}  Nd6 {[%clk 0:01:49]} 30. Qb2 {[%clk 0:01:17]}  Raa8 {[%clk 0:01:43]} 31. h4 {[%clk 0:01:09]}  Ne4 {[%clk 0:01:41]} 32. h5 {[%clk 0:01:07]}  Qa7 {[%clk 0:01:38]} 33. Rh3 {[%clk 0:00:59]}  Qa2 {[%clk 0:01:35]} 34. h6+ {[%clk 0:00:58]}  Kf8 {[%clk 0:01:30]} 35. Qxa2 {[%clk 0:00:49]}  Rxa2 {[%clk 0:01:31]} 36. Nd7+ {[%clk 0:00:49]}  Ke7 {[%clk 0:01:31]} 37. Nc5 {[%clk 0:00:50]}  f5 {[%clk 0:01:17]} 38. Re3 {[%clk 0:00:38]}  Ra3 {[%clk 0:01:17]} 39. Kf1 {[%clk 0:00:37]}  Ra2 {[%clk 0:01:12]} 40. Kg1 {[%clk 0:00:36]}  Rca8 {[%clk 0:01:07]} 41. Nd3 {[%clk 0:00:33]}  Rd2 {[%clk 0:01:06]} 42. Ne1 {[%clk 0:00:23]}  Raa2 {[%clk 0:01:04]} 43. Kf1 {[%clk 0:00:17]}  Rf2+ {[%clk 0:01:02]} 44. Kg1 {[%clk 0:00:17]}  Rxf4 {[%clk 0:01:03]} 45. Rc2 {[%clk 0:00:13]}  Ra1 {[%clk 0:00:50]} 46. g3 {[%clk 0:00:12]}  Nxg3 {[%clk 0:00:44]} 47. Kg2 {[%clk 0:00:08]}  Ne4 {[%clk 0:00:41]} 48. Rce2 {[%clk 0:00:04]}  Rg4+ {[%clk 0:00:41]} 49. Kh2 {[%clk 0:00:04]}  Rh4+ {[%clk 0:00:38]} 50. Kg2 {[%clk 0:00:04]}  Rxh6 {[%clk 0:00:36]} 51. Nf3 {[%clk 0:00:04]}  Rhh1 {[%clk 0:00:34]} 52. Ne5 {[%clk 0:00:02]}  g5 {[%clk 0:00:33]} 53. Nf3 {[%clk 0:00:02]}  g4 {[%clk 0:00:31]} 54. Ne1 {[%clk 0:00:02]}  Rh6 {[%clk 0:00:21]} 55. Nd3 {[%clk 0:00:02]}  Rah1 {[%clk 0:00:18]} 0-1


[Site "https://www.chess.com"]

[Event "Titled Tuesday Blitz May 25 2021"]
[White "Quparadze, Giga"]
[Black "Asis Gargatagli, Hipolito"]
[WhiteFideId "13602250"]
[BlackFideId "2260735"]
[WhiteElo "2658"]
[BlackElo "2557"]
[Result "1-0"]
[Round "08"]
[TimeControl "180+1"]
[Date "2021.05.25"]
[WhiteClock "0:01:51"]
[BlackClock "0:00:07"]

1. e4 {[%clk 0:03:00]}  e5 {[%clk 0:02:59]} 2. Nf3 {[%clk 0:03:00]}  Nc6 {[%clk 0:02:59]} 3. Bb5 {[%clk 0:03:00]}  a6 {[%clk 0:03:00]} 4. Ba4 {[%clk 0:03:00]}  Nf6 {[%clk 0:03:00]} 5. Nc3 {[%clk 0:03:00]}  Bc5 {[%clk 0:03:00]} 6. O-O {[%clk 0:02:57]}  O-O {[%clk 0:02:59]} 7. Bxc6 {[%clk 0:02:57]}  dxc6 {[%clk 0:03:00]} 8. Nxe5 {[%clk 0:02:56]}  Re8 {[%clk 0:03:00]} 9. Nd3 {[%clk 0:02:55]}  Bg4 {[%clk 0:03:00]} 10. Qe1 {[%clk 0:02:54]}  Bd4 {[%clk 0:03:00]} 11. e5 {[%clk 0:02:54]}  Bf5 {[%clk 0:02:50]} 12. Qe2 {[%clk 0:02:47]}  Nd7 {[%clk 0:02:43]} 13. Qf3 {[%clk 0:02:40]}  Bg6 {[%clk 0:02:25]} 14. Ne4 {[%clk 0:02:39]}  Nxe5 {[%clk 0:02:22]} 15. Nxe5 {[%clk 0:02:39]}  Bxe5 {[%clk 0:02:23]} 16. d3 {[%clk 0:02:37]}  Qh4 {[%clk 0:02:18]} 17. g3 {[%clk 0:02:29]}  Qh3 {[%clk 0:02:18]} 18. Bf4 {[%clk 0:02:18]}  Bh5 {[%clk 0:01:29]} 19. Qg2 {[%clk 0:02:15]}  Qxg2+ {[%clk 0:01:29]} 20. Kxg2 {[%clk 0:02:16]}  Bxf4 {[%clk 0:01:29]} 21. gxf4 {[%clk 0:02:17]}  f6 {[%clk 0:01:19]} 22. Rfe1 {[%clk 0:02:14]}  Bf7 {[%clk 0:01:17]} 23. f5 {[%clk 0:02:14]}  Re5 {[%clk 0:01:14]} 24. Ng3 {[%clk 0:02:10]}  Rae8 {[%clk 0:01:13]} 25. Rxe5 {[%clk 0:02:07]}  Rxe5 {[%clk 0:01:14]} 26. c4 {[%clk 0:02:06]}  c5 {[%clk 0:00:55]} 27. f4 {[%clk 0:02:04]}  Re3 {[%clk 0:00:55]} 28. Rd1 {[%clk 0:02:04]}  Be8 {[%clk 0:00:49]} 29. Kf2 {[%clk 0:02:04]}  Re7 {[%clk 0:00:50]} 30. Ne4 {[%clk 0:01:58]}  b6 {[%clk 0:00:48]} 31. Re1 {[%clk 0:01:58]}  Kf8 {[%clk 0:00:47]} 32. Rd1 {[%clk 0:01:56]}  Bd7 {[%clk 0:00:38]} 33. Ng3 {[%clk 0:01:56]}  a5 {[%clk 0:00:30]} 34. b3 {[%clk 0:01:56]}  Ke8 {[%clk 0:00:26]} 35. Rd2 {[%clk 0:01:54]}  Bc6 {[%clk 0:00:25]} 36. Rd1 {[%clk 0:01:54]}  Bd7 {[%clk 0:00:20]} 37. Rg1 {[%clk 0:01:54]}  Kf8 {[%clk 0:00:18]} 38. a3 {[%clk 0:01:52]}  Bc6 {[%clk 0:00:10]} 39. Rd1 {[%clk 0:01:52]}  Rd7 {[%clk 0:00:07]} 40. Ke3 {[%clk 0:01:51]} 1-0


[Site "https://www.chess.com"]